[Event "Estonian Chess Championship 2022"]
[Site "Tallinn, Paul Keres Chess House, Estonia"]
[Date "2022.12.17"]
[Round "8.1"]
[White "Kanep, Meelis"]
[Black "Medar, Marti"]
[Result "1-0"]
[TimeControl "90 minutes for first 40 moves and 15 min. for the rest of the game with 30 sec. increment from move 1"]
[WhiteTitle "GM"]
[WhiteFideId "4501047"]
[BlackFideId "4501870"]
[WhiteElo "2412"]
[BlackElo "2069"]

1. d4 {

[%clk 01:30:56]

} {

[%emt 00:00:03]

} d6 {

[%clk 01:30:36]

} {

[%emt 00:00:24]

} 2. e4 {

[%clk 01:30:12]

} {

[%emt 00:01:14]

} Nf6 {

[%clk 01:30:58]

} {

[%emt 00:00:08]

} 3. Bd3 {

[%clk 01:29:38]

} {

[%emt 00:01:04]

} e5 {

[%clk 01:30:17]

} {

[%emt 00:01:11]

} 4. c3 {

[%clk 01:29:23]

} {

[%emt 00:00:45]

} c6 {

[%clk 01:27:36]

} {

[%emt 00:03:11]

} 5. Ne2 {

[%clk 01:27:40]

} {

[%emt 00:02:14]

} Be7 {

[%clk 01:26:44]

} {

[%emt 00:01:21]

} 6. O-O {

[%clk 01:27:40]

} {

[%emt 00:00:31]

} Nbd7 {

[%clk 01:22:04]

} {

[%emt 00:05:10]

} 7. f4 {

[%clk 01:23:16]

} {

[%emt 00:04:53]

} Nf8 {

[%clk 01:15:58]

} {

[%emt 00:06:36]

} 8. h3 {

[%clk 01:16:21]

} {

[%emt 00:07:25]

} Qc7 {

[%clk 01:08:05]

} {

[%emt 00:08:23]

} 9. Na3 {

[%clk 01:15:23]

} {

[%emt 00:01:28]

} b5 {

[%clk 00:53:32]

} {

[%emt 00:15:02]

} 10. Nc2 {

[%clk 01:11:58]

} {

[%emt 00:03:55]

} exf4 {

[%clk 00:44:45]

} {

[%emt 00:09:17]

} 11. Bxf4 {

[%clk 01:10:52]

} {

[%emt 00:01:36]

} Ng6 {

[%clk 00:45:03]

} {

[%emt 00:00:12]

} 12. Bh2 {

[%clk 01:10:24]

} {

[%emt 00:00:57]

} O-O {

[%clk 00:44:05]

} {

[%emt 00:01:28]

} 13. Ng3 {

[%clk 01:07:21]

} {

[%emt 00:03:33]

} Rd8 {

[%clk 00:37:07]

} {

[%emt 00:07:29]

} 14. Ne3 {

[%clk 01:05:16]

} {

[%emt 00:02:35]

} Be6 {

[%clk 00:37:19]

} {

[%emt 00:00:18]

} 15. Ngf5 {

[%clk 01:03:51]

} {

[%emt 00:01:55]

} Bf8 {

[%clk 00:37:14]

} {

[%emt 00:00:34]

} 16. Qf3 {

[%clk 01:02:04]

} {

[%emt 00:02:18]

} Qb6 {

[%clk 00:34:35]

} {

[%emt 00:03:10]

} 17. Kh1 {

[%clk 01:00:34]

} {

[%emt 00:01:59]

} d5 {

[%clk 00:34:22]

} {

[%emt 00:00:43]

} 18. e5 {

[%clk 00:59:38]

} {

[%emt 00:01:26]

} Ne8 {

[%clk 00:34:33]

} {

[%emt 00:00:19]

} 19. Qh5 {

[%clk 00:54:03]

} {

[%emt 00:06:05]

} c5 {

[%clk 00:33:54]

} {

[%emt 00:01:10]

} 20. Rf4 {

[%clk 00:53:01]

} {

[%emt 00:01:32]

} Kh8 {

[%clk 00:22:36]

} {

[%emt 00:11:48]

} 21. Nh4 {

[%clk 00:51:03]

} {

[%emt 00:02:28]

} Kg8 {

[%clk 00:20:34]

} {

[%emt 00:02:32]

} 22. Nhf5 {

[%clk 00:36:53]

} {

[%emt 00:14:40]

} Kh8 {

[%clk 00:18:35]

} {

[%emt 00:02:30]

} 23. Rf3 {

[%clk 00:34:13]

} {

[%emt 00:03:10]

} c4 {

[%clk 00:17:28]

} {

[%emt 00:01:37]

} 24. Bc2 {

[%clk 00:33:56]

} {

[%emt 00:00:46]

} b4 {

[%clk 00:17:30]

} {

[%emt 00:00:28]

} 25. Raf1 {

[%clk 00:34:04]

} {

[%emt 00:00:22]

} bxc3 {

[%clk 00:17:07]

} {

[%emt 00:00:53]

} 26. Nh4 {

[%clk 00:33:44]

} {

[%emt 00:00:50]

} Be7 {

[%clk 00:15:44]

} {

[%emt 00:01:55]

} 27. Bxg6 {

[%clk 00:32:46]

} {

[%emt 00:01:28]

} h6 {

[%clk 00:15:27]

} {

[%emt 00:00:47]

} 28. Bxf7 {

[%clk 00:30:44]

} {

[%emt 00:02:32]

} Bxh4 {

[%clk 00:15:19]

} {

[%emt 00:00:38]

} 29. Bxe6 {

[%clk 00:29:25]

} {

[%emt 00:01:49]

} Qxe6 {

[%clk 00:15:09]

} {

[%emt 00:00:39]

} 30. Qxh4 {

[%clk 00:29:43]

} {

[%emt 00:00:12]

} cxb2 {

[%clk 00:15:27]

} {

[%emt 00:00:13]

} 31. Qf2 {

[%clk 00:29:44]

} {

[%emt 00:00:29]

} Rab8 {

[%clk 00:14:53]

} {

[%emt 00:01:04]

} 32. Rf8+ {

[%clk 00:29:41]

} {

[%emt 00:00:32]

} Kh7 {

[%clk 00:15:18]

} {

[%emt 00:00:05]

} 33. Qc2+ {

[%clk 00:30:01]

} {

[%emt 00:00:10]

} g6 {

[%clk 00:15:22]

} {

[%emt 00:00:26]

} 34. R8f7+ {

[%clk 00:29:15]

} {

[%emt 00:01:16]

} Ng7 {

[%clk 00:15:26]

} {

[%emt 00:00:26]

} 35. R7f6 {

[%clk 00:29:03]

} {

[%emt 00:00:42]

} Qe8 {

[%clk 00:15:44]

} {

[%emt 00:00:12]

} 36. e6 {

[%clk 00:29:04]

} {

[%emt 00:00:28]

} Rb7 {

[%clk 00:15:17]

} {

[%emt 00:00:57]

} 37. Rb1 {

[%clk 00:22:08]

} {

[%emt 00:07:26]

} Nxe6 {

[%clk 00:14:28]

} {

[%emt 00:01:19]

} 38. Rxb2 {

[%clk 00:19:57]

} {

[%emt 00:02:42]

} Re7 {

[%clk 00:14:41]

} {

[%emt 00:00:17]

} 39. Be5 {

[%clk 00:19:57]

} {

[%emt 00:00:29]

} Ng5 {

[%clk 00:12:59]

} {

[%emt 00:02:12]

} 40. Nxd5 {

[%clk 00:28:12]

} {

[%emt 00:07:16]

} Rxd5 {

[%clk 00:25:32]

} {

[%emt 00:02:57]

} 41. Rb8 {

[%clk 00:28:22]

} {

[%emt 00:00:20]

} Rdxe5 {

[%clk 00:25:24]

} {

[%emt 00:00:38]

} 42. Rxe8 {

[%clk 00:28:40]

} {

[%emt 00:00:12]

} Re1+ {

[%clk 00:25:50]

} {

[%emt 00:00:04]

} 43. Kh2 {

[%clk 00:29:02]

} {

[%emt 00:00:08]

} Rxe8 {

[%clk 00:26:14]

} {

[%emt 00:00:07]

} 44. Qxg6+ {

[%clk 00:29:16]

} {

[%emt 00:00:15]

} Kh8 {

[%clk 00:26:38]

} {

[%emt 00:00:06]

} 45. Qxh6+ {

[%clk 00:29:37]

} {

[%emt 00:00:09]

} 1-0

[Event "Estonian Chess Championship 2022"]
[Site "Tallinn, Paul Keres Chess House, Estonia"]
[Date "2022.12.17"]
[Round "8.2"]
[White "Kiik, Kalle"]
[Black "Timoshin, Andrei"]
[Result "1/2-1/2"]
[TimeControl "90 minutes for first 40 moves and 15 min. for the rest of the game with 30 sec. increment from move 1"]
[WhiteTitle "IM"]
[WhiteFideId "4500075"]
[BlackFideId "4503503"]
[WhiteElo "2369"]
[BlackElo "2179"]

1. c4 {

[%clk 01:30:39]

} {

[%emt 00:00:20]

} c5 {

[%clk 01:28:20]

} {

[%emt 00:02:41]

} 2. Nf3 {

[%clk 01:30:23]

} {

[%emt 00:00:45]

} Nc6 {

[%clk 01:28:20]

} {

[%emt 00:00:32]

} 3. Nc3 {

[%clk 01:30:19]

} {

[%emt 00:00:32]

} g6 {

[%clk 01:21:50]

} {

[%emt 00:07:01]

} 4. e3 {

[%clk 01:25:30]

} {

[%emt 00:05:19]

} d6 {

[%clk 01:17:39]

} {

[%emt 00:04:41]

} 5. h3 {

[%clk 01:23:25]

} {

[%emt 00:02:33]

} Bg7 {

[%clk 01:15:32]

} {

[%emt 00:02:38]

} 6. d4 {

[%clk 01:21:49]

} {

[%emt 00:02:06]

} e5 {

[%clk 01:14:39]

} {

[%emt 00:01:24]

} 7. dxc5 {

[%clk 01:12:28]

} {

[%emt 00:09:50]

} dxc5 {

[%clk 01:15:07]

} {

[%emt 00:00:02]

} 8. Qxd8+ {

[%clk 01:12:49]

} {

[%emt 00:00:08]

} Nxd8 {

[%clk 01:06:48]

} {

[%emt 00:08:50]

} 9. g4 {

[%clk 01:07:25]

} {

[%emt 00:05:53]

} Ne7 {

[%clk 00:53:47]

} {

[%emt 00:13:32]

} 10. Ng5 {

[%clk 01:04:12]

} {

[%emt 00:03:42]

} O-O {

[%clk 00:44:48]

} {

[%emt 00:09:30]

} 11. Nge4 {

[%clk 01:04:01]

} {

[%emt 00:00:40]

} f5 {

[%clk 00:40:05]

} {

[%emt 00:05:15]

} 12. gxf5 {

[%clk 01:04:11]

} {

[%emt 00:00:19]

} gxf5 {

[%clk 00:40:33]

} {

[%emt 00:00:02]

} 13. Nxc5 {

[%clk 01:04:11]

} {

[%emt 00:00:29]

} b6 {

[%clk 00:40:39]

} {

[%emt 00:00:25]

} 14. Nd3 {

[%clk 00:59:50]

} {

[%emt 00:04:50]

} Be6 {

[%clk 00:34:37]

} {

[%emt 00:06:34]

} 15. Nb4 {

[%clk 00:58:48]

} {

[%emt 00:01:31]

} Ndc6 {

[%clk 00:29:49]

} {

[%emt 00:05:18]

} 16. Nbd5 {

[%clk 00:54:28]

} {

[%emt 00:04:49]

} Rac8 {

[%clk 00:23:27]

} {

[%emt 00:06:53]

} 17. Bd2 {

[%clk 00:35:29]

} {

[%emt 00:19:29]

} Rfd8 {

[%clk 00:18:05]

} {

[%emt 00:05:52]

} 18. Nxe7+ {

[%clk 00:31:28]

} {

[%emt 00:04:31]

} Nxe7 {

[%clk 00:18:34]

} {

[%emt 00:00:02]

} 19. b3 {

[%clk 00:31:47]

} {

[%emt 00:00:10]

} e4 {

[%clk 00:18:59]

} {

[%emt 00:00:05]

} 20. Rc1 {

[%clk 00:31:14]

} {

[%emt 00:01:02]

} Ng6 {

[%clk 00:17:07]

} {

[%emt 00:02:22]

} 21. Be2 {

[%clk 00:29:16]

} {

[%emt 00:02:28]

} Rd7 {

[%clk 00:13:20]

} {

[%emt 00:04:18]

} 22. Rg1 {

[%clk 00:25:21]

} {

[%emt 00:04:24]

} Rcd8 {

[%clk 00:13:18]

} {

[%emt 00:00:32]

} 23. Nd5 {

[%clk 00:24:18]

} {

[%emt 00:01:32]

} Kh8 {

[%clk 00:13:10]

} {

[%emt 00:00:39]

} 24. Bc3 {

[%clk 00:19:00]

} {

[%emt 00:05:48]

} Bxd5 {

[%clk 00:13:34]

} {

[%emt 00:00:07]

} 25. Bxg7+ {

[%clk 00:18:17]

} {

[%emt 00:01:12]

} Kxg7 {

[%clk 00:13:59]

} {

[%emt 00:00:05]

} 26. cxd5 {

[%clk 00:18:41]

} {

[%emt 00:00:07]

} Rxd5 {

[%clk 00:13:59]

} {

[%emt 00:00:31]

} 27. Rc7+ {

[%clk 00:16:18]

} {

[%emt 00:02:52]

} R8d7 {

[%clk 00:14:27]

} {

[%emt 00:00:02]

} 28. Rxd7+ {

[%clk 00:16:23]

} {

[%emt 00:00:24]

} Rxd7 {

[%clk 00:14:56]

} {

[%emt 00:00:02]

} 29. f4 {

[%clk 00:16:18]

} {

[%emt 00:00:34]

} exf3 {

[%clk 00:14:38]

} {

[%emt 00:00:48]

} 30. Bxf3 {

[%clk 00:16:43]

} {

[%emt 00:00:05]

} Kf6 {

[%clk 00:14:38]

} {

[%emt 00:00:31]

} 31. Ke2 {

[%clk 00:17:01]

} {

[%emt 00:00:12]

} f4 {

[%clk 00:12:15]

} {

[%emt 00:02:54]

} 32. Be4 {

[%clk 00:12:54]

} {

[%emt 00:04:36]

} Re7 {

[%clk 00:12:42]

} {

[%emt 00:00:03]

} 33. Kf3 {

[%clk 00:12:49]

} {

[%emt 00:00:35]

} fxe3 {

[%clk 00:12:46]

} {

[%emt 00:00:26]

} 34. Kxe3 {

[%clk 00:12:32]

} {

[%emt 00:00:47]

} Rc7 {

[%clk 00:08:18]

} {

[%emt 00:04:59]

} 35. Rf1+ {

[%clk 00:11:48]

} {

[%emt 00:01:13]

} Ke6 {

[%clk 00:08:24]

} {

[%emt 00:00:24]

} 36. Rf2 {

[%clk 00:08:45]

} {

[%emt 00:03:33]

} Rc1 {

[%clk 00:06:01]

} {

[%emt 00:02:53]

} 37. Bd3 {

[%clk 00:06:13]

} {

[%emt 00:03:01]

} Rh1 {

[%clk 00:03:24]

} {

[%emt 00:03:07]

} 38. Kd4 {

[%clk 00:05:12]

} {

[%emt 00:01:32]

} Rd1 {

[%clk 00:02:17]

} {

[%emt 00:01:37]

} 39. Kc3 {

[%clk 00:05:24]

} {

[%emt 00:00:17]

} a5 {

[%clk 00:01:00]

} {

[%emt 00:01:47]

} 40. Bc4+ {

[%clk 00:17:59]

} {

[%emt 00:02:55]

} Ke5 {

[%clk 00:15:37]

} {

[%emt 00:00:53]

} 41. Rf7 {

[%clk 00:17:53]

} {

[%emt 00:00:34]

} Rh1 {

[%clk 00:06:24]

} {

[%emt 00:09:44]

} 42. Rxh7 {

[%clk 00:17:39]

} {

[%emt 00:00:44]

} Nf4 {

[%clk 00:06:53]

} {

[%emt 00:00:02]

} 43. h4 {

[%clk 00:16:26]

} {

[%emt 00:01:42]

} Rh2 {

[%clk 00:07:03]

} {

[%emt 00:00:20]

} 44. a4 {

[%clk 00:15:42]

} {

[%emt 00:01:13]

} Rh3+ {

[%clk 00:07:01]

} {

[%emt 00:00:34]

} 45. Kb2 {

[%clk 00:15:50]

} {

[%emt 00:00:21]

} Kd4 {

[%clk 00:07:10]

} {

[%emt 00:00:21]

} 46. Rh6 {

[%clk 00:13:29]

} {

[%emt 00:02:51]

} Rh2+ {

[%clk 00:05:47]

} {

[%emt 00:01:53]

} 47. Ka3 {

[%clk 00:13:09]

} {

[%emt 00:00:50]

} Rh1 {

[%clk 00:01:12]

} {

[%emt 00:05:05]

} 48. Bb5 {

[%clk 00:12:13]

} {

[%emt 00:01:25]

} Nd5 {

[%clk 00:00:39]

} {

[%emt 00:01:04]

} 49. Rd6 {

[%clk 00:08:56]

} {

[%emt 00:03:47]

} Rxh4 {

[%clk 00:00:34]

} {

[%emt 00:00:35]

} 50. Bc4 {

[%clk 00:07:04]

} {

[%emt 00:02:21]

} Rh5 {

[%clk 00:00:53]

} {

[%emt 00:00:11]

} 51. Bxd5 {

[%clk 00:06:47]

} {

[%emt 00:00:47]

} Rxd5 {

[%clk 00:01:21]

} {

[%emt 00:00:02]

} 52. Rxb6 {

[%clk 00:07:05]

} {

[%emt 00:00:12]

} Rh5 {

[%clk 00:00:56]

} {

[%emt 00:00:56]

} 53. Rc6 {

[%clk 00:06:56]

} {

[%emt 00:00:39]

} Rg5 {

[%clk 00:00:42]

} {

[%emt 00:00:44]

} 54. Rc4+ {

[%clk 00:06:31]

} {

[%emt 00:00:55]

} Kd5 {

[%clk 00:01:03]

} {

[%emt 00:00:10]

} 55. Rc3 {

[%clk 00:06:54]

} {

[%emt 00:00:07]

} Kd4 {

[%clk 00:01:14]

} {

[%emt 00:00:19]

} 56. Rc8 {

[%clk 00:06:20]

} {

[%emt 00:01:03]

} Rh5 {

[%clk 00:01:24]

} {

[%emt 00:00:20]

} 57. Rc4+ {

[%clk 00:06:06]

} {

[%emt 00:00:45]

} Kd5 {

[%clk 00:01:50]

} {

[%emt 00:00:05]

} 58. Rg4 {

[%clk 00:06:31]

} {

[%emt 00:00:04]

} Kc5 {

[%clk 00:01:51]

} {

[%emt 00:00:30]

} 59. Rg6 {

[%clk 00:06:51]

} {

[%emt 00:00:09]

} Rf5 {

[%emt 00:02:40]

} 60. Rh6 {

[%emt 00:00:14]

} Kd4 1/2-1/2

[Event "Estonian Chess Championship 2022"]
[Site "Tallinn, Paul Keres Chess House, Estonia"]
[Date "2022.12.17"]
[Round "8.3"]
[White "Volodin, Aleksandr"]
[Black "Soot, Margus"]
[Result "1-0"]
[TimeControl "90 minutes for first 40 moves and 15 min. for the rest of the game with 30 sec. increment from move 1"]
[WhiteTitle "GM"]
[WhiteFideId "4501950"]
[BlackFideId "4501160"]
[WhiteElo "2440"]
[BlackElo "2121"]

1. d4 {

[%clk 01:30:36]

} {

[%emt 00:00:22]

} d5 {

[%clk 01:30:56]

} {

[%emt 00:00:04]

} 2. c4 {

[%clk 01:30:58]

} {

[%emt 00:00:09]

} e6 {

[%clk 01:31:25]

} {

[%emt 00:00:01]

} 3. Nf3 {

[%clk 01:31:18]

} {

[%emt 00:00:09]

} Nf6 {

[%clk 01:31:45]

} {

[%emt 00:00:11]

} 4. g3 {

[%clk 01:31:44]

} {

[%emt 00:00:05]

} Be7 {

[%clk 01:32:01]

} {

[%emt 00:00:14]

} 5. Bg2 {

[%clk 01:32:08]

} {

[%emt 00:00:05]

} O-O {

[%clk 01:32:25]

} {

[%emt 00:00:06]

} 6. O-O {

[%clk 01:32:34]

} {

[%emt 00:00:05]

} b6 {

[%clk 01:29:17]

} {

[%emt 00:03:38]

} 7. cxd5 {

[%clk 01:28:30]

} {

[%emt 00:04:34]

} exd5 {

[%clk 01:29:11]

} {

[%emt 00:00:35]

} 8. Nc3 {

[%clk 01:28:53]

} {

[%emt 00:00:07]

} Bb7 {

[%clk 01:29:10]

} {

[%emt 00:00:31]

} 9. Ne5 {

[%clk 01:24:46]

} {

[%emt 00:04:37]

} Ne4 {

[%clk 01:24:59]

} {

[%emt 00:04:41]

} 10. Nxe4 {

[%clk 01:12:27]

} {

[%emt 00:12:49]

} dxe4 {

[%clk 01:25:11]

} {

[%emt 00:00:18]

} 11. Qc2 {

[%clk 01:12:34]

} {

[%emt 00:00:24]

} f5 {

[%clk 01:21:07]

} {

[%emt 00:04:34]

} 12. Be3 {

[%clk 01:10:59]

} {

[%emt 00:02:05]

} Bd5 {

[%clk 01:20:52]

} {

[%emt 00:00:45]

} 13. f3 {

[%clk 01:09:59]

} {

[%emt 00:01:29]

} exf3 {

[%clk 01:18:03]

} {

[%emt 00:03:19]

} 14. Bxf3 {

[%clk 01:09:01]

} {

[%emt 00:01:28]

} Bxf3 {

[%clk 01:12:54]

} {

[%emt 00:05:39]

} 15. Rxf3 {

[%clk 01:08:39]

} {

[%emt 00:00:52]

} g6 {

[%clk 01:13:23]

} {

[%emt 00:00:01]

} 16. Rc1 {

[%clk 00:58:24]

} {

[%emt 00:10:45]

} Bd6 {

[%clk 01:07:49]

} {

[%emt 00:06:04]

} 17. Bh6 {

[%clk 00:50:38]

} {

[%emt 00:08:15]

} Bxe5 {

[%clk 01:04:48]

} {

[%emt 00:03:31]

} 18. Qc4+ {

[%clk 00:39:36]

} {

[%emt 00:11:32]

} Kh8 {

[%clk 01:01:44]

} {

[%emt 00:03:34]

} 19. dxe5 {

[%clk 00:38:59]

} {

[%emt 00:01:08]

} c5 {

[%clk 01:01:32]

} {

[%emt 00:00:41]

} 20. Rd3 {

[%clk 00:38:52]

} {

[%emt 00:00:36]

} Qe7 {

[%clk 01:01:47]

} {

[%emt 00:00:15]

} 21. Bxf8 {

[%clk 00:39:03]

} {

[%emt 00:00:20]

} Qxf8 {

[%clk 01:02:16]

} {

[%emt 00:00:01]

} 22. Rd6 {

[%clk 00:38:51]

} {

[%emt 00:00:41]

} Qc8 {

[%clk 01:01:27]

} {

[%emt 00:01:19]

} 23. Qf7 {

[%clk 00:39:08]

} {

[%emt 00:00:14]

} Na6 {

[%clk 01:01:45]

} {

[%emt 00:00:13]

} 24. Rd7 {

[%clk 00:39:30]

} {

[%emt 00:00:07]

} 1-0